[Event "69th RUS-ch Women Higher League 2019"]
[Site "Yaroslavl"]
[Date "2019.07.01"]
[Round "5.10"]
[White "Garifullina, Leya"]
[Black "Bivol, Alina"]
[Result "1-0"]
[ECO "B12"]
[WhiteElo "2246"]
[BlackElo "2391"]
[Annotator "NA"]
[PlyCount "157"]
[EventDate "2019.06.27"]
[EventType "swiss"]
[EventCountry "RUS"]
[SourceTitle "playchess.com"]
[Source "ChessBase"]
[SourceQuality "1"]
[TimeControl "40/5400+30:1800+30"]

1. e4 {[%emt 0:00:00]} c6 {[%emt 0:00:24]} 2. d4 {[%emt 0:00:00]} d5 {[%emt 0:00:04]} 3. e5 {[%emt 0:00:18]} Bf5 {[%emt 0:00:39]} 4. h4 {[%emt 0:00:25]} Qb6 {[%emt 0:01:22]} 5. Nc3 {[%emt 0:00:36]} h5 {[%emt 0:05:41]} 6. Be2 {[%emt 0:05:04]} g6 {[%emt 0:00:35]} 7. Na4 {[%emt 0:02:39]} Qc7 {[%emt 0:00:52]} 8. c3 {[%emt 0:02:30]} Nd7 {[%emt 0:03:01]} 9. b4 {[%emt 0:01:31]} b6 {[%emt 0:02:35]} 10. Be3 {[%emt 0:02:38]} f6 {[%emt 0:00:50]} 11. f4 {[%emt 0:03:50]} Nh6 {[%emt 0:00:58]} 12. Nh3 {[%emt 0:03:29]} Ng4 {[%emt 0:01:10]} 13. Bf2 {[%emt 0:06:41]} Bh6 {[%emt 0:02:40]} 14. Bd3 {[%emt 0:02:34]} e6 {[%emt 0:01:30]} 15. Bxf5 {[%emt 0:01:47]} gxf5 {[%emt 0:00:08]} 16. O-O {[%emt 0:01:40]} Rg8 {[%emt 0:04:05]} 17. Qe2 {[%emt 0:03:05]} fxe5 {[%emt 0:00:18]} 18. dxe5 {[%emt 0:00:21]} Nf8 {[%emt 0:00:35]} 19. Ng5 {[%emt 0:04:18]} Bxg5 {[%emt 0:03:22]} 20. hxg5 {[%emt 0:00:05]} Ng6 {[%emt 0:00:44]} 21. Bd4 {[%emt 0:01:15]} Rh8 {[%emt 0:02:39]} 22. Rac1 {[%emt 0:05:02]} Kf7 {[%emt 0:09:47]} 23. Rf3 {[%emt 0:01:36]} Qd7 {[%emt 0:00:54]} 24. Nb2 {[%emt 0:01:23]} Rac8 {[%emt 0:03:05]} 25. Rd1 {[%emt 0:03:09]} c5 {[%emt 0:01:07]} 26. bxc5 {[%emt 0:00:06]} bxc5 {[%emt 0:00:01]} 27. Bf2 {[%emt 0:00:28]} Nxf2 {[%emt 0:01:30]} 28. Qxf2 {[%emt 0:00:44]} c4 {[%emt 0:02:20]} 29. Rf1 {[%emt 0:01:46]} Qc7 {[%emt 0:03:17]} 30. Nd1 {[%emt 0:01:12]} Qc5 {[%emt 0:00:41]} 31. Ne3 {[%emt 0:00:24]} Rb8 {[%emt 0:01:11]} 32. Kh2 {[%emt 0:00:43]} Qa5 {[%emt 0:02:25]} 33. Qc2 {[%emt 0:01:59]} Kg7 {[%emt 0:00:45]} 34. Rb1 {[%emt 0:02:39]} Qc7 {[%emt 0:00:37]} 35. Rd1 {[%emt 0:02:37]} Rb5 {[%emt 0:02:03]} 36. a4 {[%emt 0:00:41]} Rb3 {[%emt 0:01:34]} 37. Qe2 {[%emt 0:03:55]} Qc6 {[%emt 0:03:03]} 38. Nc2 {[%emt 0:00:34]} Qxa4 {[%emt 0:07:42]} 39. Ra1 {[%emt 0:00:41]} Qd7 {[%emt 0:00:02]} 40. Nd4 {[%emt 0:00:00]} Rb6 {[%emt 0:00:00]} 41. Rf2 {[%emt 0:01:47]} Ne7 {[%emt 0:03:55]} 42. Qe3 {[%emt 0:00:35]} Rhb8 {[%emt 0:01:50]} 43. Rfa2 {[%emt 0:00:48]} Nc8 {[%emt 0:04:15]} 44. Qf3 {[%emt 0:01:14]} Kg6 {[%emt 0:01:50]} 45. Kh3 {[%emt 0:01:01]} R8b7 {[%emt 0:11:27]} 46. Kh4 {[%emt 0:01:04]} Qh7 {[%emt 0:01:51]} 47. Ra6 {[%emt 0:00:08]} Re7 {[%emt 0:00:29]} 48. Rxb6 {[%emt 0:00:59]} Nxb6 {[%emt 0:01:13]} 49. Ra5 {[%emt 0:00:12]} Qh8 {[%emt 0:19:06]} 50. Rc5 {[%emt 0:00:28]} Nd7 {[%emt 0:02:18]} 51. Rc6 {[%emt 0:01:04]} Nf8 {[%emt 0:02:41]} 52. Qxd5 {[%emt 0:00:57]} Kf7 {[%emt 0:00:01]} 53. Nxe6 {[%emt 0:03:29]} Nxe6 {[%emt 0:05:03]} 54. g6+ {[%emt 0:00:07]} Kxg6 {[%emt 0:00:27]} 55. Rxe6+ {[%emt 0:00:04]} Rxe6 {[%emt 0:00:03]} 56. Qxe6+ {[%emt 0:00:02]} Kg7 {[%emt 0:00:40]} 57. Qe7+ {[%emt 0:00:13]} Kg6 {[%emt 0:02:29]} 58. Kh3 {[%emt 0:05:56]} Qg7 {[%emt 0:01:52]} 59. Qg5+ {[%emt 0:01:22]} Kh7 {[%emt 0:00:58]} 60. Qxf5+ {[%emt 0:03:23]} Qg6 {[%emt 0:00:37]} 61. Qd7+ {[%emt 0:00:28]} Kg8 {[%emt 0:00:26]} 62. Qc8+ {[%emt 0:02:22]} Kg7 {[%emt 0:00:46]} 63. Qc7+ {[%emt 0:00:13]} Kf8 {[%emt 0:00:37]} 64. Qb8+ {[%emt 0:01:23]} Kg7 {[%emt 0:02:52]} 65. Qxa7+ {[%emt 0:00:44]} Kh6 {[%emt 0:00:04]} 66. Qe3 {[%emt 0:00:58]} Qd3 {[%emt 0:02:16]} 67. Qg3 {[%emt 0:00:10]} h4 {[%emt 0:02:05]} 68. Kxh4 {[%emt 0:00:10]} Qf1 {[%emt 0:00:23]} 69. Kg4 {[%emt 0:00:55]} Qd1+ {[%emt 0:02:07]} 70. Qf3 {[%emt 0:00:15]} Qe1 {[%emt 0:00:33]} 71. Qc6+ {[%emt 0:02:12]} Kg7 {[%emt 0:00:13]} 72. Qd7+ {[%emt 0:01:01]} Kh6 {[%emt 0:00:34]} 73. Qe6+ {[%emt 0:01:57]} Kg7 {[%emt 0:00:02]} 74. Qe7+ {[%emt 0:00:16]} Kg8 {[%emt 0:00:20]} 75. Kf5 {[%emt 0:00:44]} Qh1 {[%emt 0:02:24]} 76. g4 {[%emt 0:01:53]} Qh3 {[%emt 0:00:46]} 77. Qe8+ {[%emt 0:02:12]} Kg7 {[%emt 0:00:05]} 78. Qg6+ {[%emt 0:00:04]} Kf8 {[%emt 0:00:06]} 79. Ke6 1-0

[Event "69th RUS-ch Women Higher League 2019"]
[Site "Yaroslavl"]
[Date "2019.07.01"]
[Round "5.11"]
[White "Komiagina, Maria"]
[Black "Ambartsumova, Karina"]
[Result "0-1"]
[ECO "B43"]
[WhiteElo "2254"]
[BlackElo "2359"]
[Annotator "NA"]
[PlyCount "96"]
[EventDate "2019.06.27"]
[EventType "swiss"]
[EventCountry "RUS"]
[SourceTitle "playchess.com"]
[Source "ChessBase"]
[SourceQuality "1"]
[TimeControl "40/5400+30:1800+30"]

1. e4 {[%emt 0:00:00]} c5 {[%emt 0:00:00]} 2. Nf3 {[%emt 0:00:00]} e6 {[%emt 0:00:00]} 3. d4 {[%emt 0:00:00]} cxd4 {[%emt 0:00:02]} 4. Nxd4 {[%emt 0:00:00]} a6 {[%emt 0:00:25]} 5. Nc3 {[%emt 0:00:05]} b5 {[%emt 0:00:21]} 6. Bd3 {[%emt 0:00:16]} Qb6 {[%emt 0:00:47]} 7. Nf3 {[%emt 0:00:10]} Qc7 {[%emt 0:02:21]} 8. O-O {[%emt 0:00:21]} Bb7 {[%emt 0:00:54]} 9. Re1 {[%emt 0:00:36]} Bc5 {[%emt 0:01:42]} 10. Bg5 {[%emt 0:06:47]} f6 {[%emt 0:16:22]} 11. Bh4 {[%emt 0:00:59]} Ne7 {[%emt 0:00:35]} 12. Bg3 {[%emt 0:03:38]} e5 {[%emt 0:09:30]} 13. a3 {[%emt 0:01:19]} O-O {[%emt 0:00:00]} 14. Qd2 {[%emt 0:00:54]} Nbc6 {[%emt 0:11:25]} 15. a4 {[%emt 0:06:32]} b4 {[%emt 0:02:52]} 16. Bc4+ {[%emt 0:01:25]} Kh8 {[%emt 0:00:07]} 17. Nd5 {[%emt 0:00:15]} Nxd5 {[%emt 0:00:47]} 18. exd5 {[%emt 0:03:20]} Ne7 {[%emt 0:01:02]} 19. Bb3 {[%emt 0:02:14]} d6 {[%emt 0:01:13]} 20. Rad1 {[%emt 0:00:56]} a5 {[%emt 0:03:24]} 21. c4 {[%emt 0:07:08]} bxc3 {[%emt 0:07:06]} 22. bxc3 {[%emt 0:00:06]} Ba6 {[%emt 0:03:55]} 23. Qa2 {[%emt 0:02:01]} Rab8 {[%emt 0:02:10]} 24. h3 {[%emt 0:04:27]} Rfc8 {[%emt 0:04:48]} 25. Nd2 {[%emt 0:04:15]} Nf5 {[%emt 0:10:01]} 26. Ne4 {[%emt 0:10:56]} Nxg3 {[%emt 0:00:32]} 27. Nxg3 {[%emt 0:00:06]} Bxf2+ {[%emt 0:05:37]} 28. Qxf2 {[%emt 0:02:22]} Rxb3 {[%emt 0:00:05]} 29. Re3 {[%emt 0:01:18]} Rxc3 {[%emt 0:01:33]} 30. Rxc3 {[%emt 0:02:30]} Qxc3 {[%emt 0:00:02]} 31. Kh2 {[%emt 0:03:13]} Qb3 {[%emt 0:01:53]} 32. Rd2 {[%emt 0:00:32]} Qxa4 {[%emt 0:01:38]} 33. Qb6 {[%emt 0:02:10]} Bb5 {[%emt 0:09:31]} 34. Rb2 {[%emt 0:01:11]} Be8 {[%emt 0:00:48]} 35. Qxd6 {[%emt 0:00:21]} Bg6 {[%emt 0:02:17]} 36. Rb7 {[%emt 0:01:30]} Qe8 {[%emt 0:00:28]} 37. Qb6 {[%emt 0:02:21]} Qd8 {[%emt 0:00:45]} 38. Qb5 {[%emt 0:02:47]} Ra8 {[%emt 0:00:51]} 39. Ne2 {[%emt 0:07:29]} a4 {[%emt 0:00:11]} 40. Nc3 {[%emt 0:00:00]} a3 {[%emt 0:00:00]} 41. Qb4 {[%emt 0:03:04]} e4 {[%emt 0:11:00]} 42. Kh1 {[%emt 0:05:05]} e3 {[%emt 0:02:32]} 43. Qb5 {[%emt 0:00:10]} Qd6 {[%emt 0:02:36]} 44. Rb6 {[%emt 0:00:27]} Qe5 {[%emt 0:02:31]} 45. Qc6 {[%emt 0:03:08]} Re8 {[%emt 0:01:02]} 46. d6 {[%emt 0:01:32]} a2 {[%emt 0:00:55]} 47. Ra6 {[%emt 0:03:33]} e2 {[%emt 0:00:11]} 48. Nxe2 {[%emt 0:00:53]} a1=Q+ {[%emt 0:00:25]} 0-1

[Event "69th RUS-ch Women Higher League 2019"]
[Site "Yaroslavl"]
[Date "2019.07.01"]
[Round "5.12"]
[White "Solozhenkina, Elizaveta"]
[Black "Chernyak, Viktoria"]
[Result "1-0"]
[ECO "B03"]
[WhiteElo "2324"]
[BlackElo "2253"]
[Annotator "NA"]
[PlyCount "61"]
[EventDate "2019.06.27"]
[EventType "swiss"]
[EventCountry "RUS"]
[SourceTitle "playchess.com"]
[Source "ChessBase"]
[SourceQuality "1"]
[TimeControl "40/5400+30:1800+30"]

1. e4 {[%emt 0:00:00]} Nf6 {[%emt 0:00:00]} 2. e5 {[%emt 0:00:00]} Nd5 {[%emt 0:00:00]} 3. d4 {[%emt 0:00:00]} d6 {[%emt 0:00:00]} 4. c4 {[%emt 0:00:20]} Nb6 {[%emt 0:00:00]} 5. exd6 {[%emt 0:00:09]} exd6 {[%emt 0:00:25]} 6. Nc3 {[%emt 0:02:38]} Be7 {[%emt 0:00:09]} 7. Be3 {[%emt 0:05:05]} Nc6 {[%emt 0:01:19]} 8. Nf3 {[%emt 0:03:29]} Bg4 {[%emt 0:02:02]} 9. h3 {[%emt 0:02:27]} Bh5 {[%emt 0:04:13]} 10. b3 {[%emt 0:05:03]} Bf6 {[%emt 0:05:21]} 11. Be2 {[%emt 0:01:28]} O-O {[%emt 0:04:29]} 12. g4 {[%emt 0:22:50]} Bg6 {[%emt 0:00:17]} 13. h4 {[%emt 0:00:49]} d5 {[%emt 0:02:55]} 14. c5 {[%emt 0:06:29]} Nc8 {[%emt 0:01:26]} 15. g5 {[%emt 0:07:18]} Be7 {[%emt 0:00:34]} 16. Ne5 {[%emt 0:01:14]} Nxe5 {[%emt 0:06:02]} 17. dxe5 {[%emt 0:00:02]} c6 {[%emt 0:00:14]} 18. Bg4 {[%emt 0:03:27]} b6 {[%emt 0:10:38]} 19. h5 {[%emt 0:04:32]} Be4 {[%emt 0:02:28]} 20. Nxe4 {[%emt 0:08:29]} dxe4 {[%emt 0:00:35]} 21. g6 {[%emt 0:00:45]} f5 {[%emt 0:05:10]} 22. exf6 {[%emt 0:02:26]} Bxf6 {[%emt 0:07:25]} 23. Be6+ {[%emt 0:02:12]} Kh8 {[%emt 0:00:05]} 24. h6 {[%emt 0:02:09]} Bc3+ {[%emt 0:19:58]} 25. Kf1 {[%emt 0:00:19]} Qd3+ {[%emt 0:02:56]} 26. Kg2 {[%emt 0:04:44]} Ne7 {[%emt 0:04:23]} 27. hxg7+ {[%emt 0:08:41]} Kxg7 {[%emt 0:00:35]} 28. Rxh7+ {[%emt 0:00:21]} Kf6 {[%emt 0:00:11]} 29. Qg4 {[%emt 0:00:15]} Rae8 {[%emt 0:05:09]} 30. Rd1 {[%emt 0:00:39]} Qc2 {[%emt 0:00:33]} 31. Rd6 {[%emt 0:00:19]} 1-0

[Event "69th RUS-ch Women Higher League 2019"]
[Site "Yaroslavl"]
[Date "2019.07.01"]
[Round "5.13"]
[White "Maltsevskaya, Aleksandra"]
[Black "Bykova, Anastasia"]
[Result "0-1"]
[ECO "D18"]
[WhiteElo "2316"]
[BlackElo "2229"]
[Annotator "NA"]
[PlyCount "82"]
[EventDate "2019.06.27"]
[EventType "swiss"]
[EventCountry "RUS"]
[SourceTitle "playchess.com"]
[Source "ChessBase"]
[SourceQuality "1"]
[TimeControl "40/5400+30:1800+30"]

1. c4 {[%emt 0:01:09]} c6 {[%emt 0:00:00]} 2. Nf3 {[%emt 0:00:04]} d5 {[%emt 0:00:00]} 3. d4 {[%emt 0:00:05]} Nf6 {[%emt 0:00:00]} 4. Nc3 {[%emt 0:00:49]} dxc4 {[%emt 0:00:05]} 5. a4 {[%emt 0:00:05]} Bf5 {[%emt 0:00:14]} 6. e3 {[%emt 0:00:10]} e6 {[%emt 0:00:13]} 7. Bxc4 {[%emt 0:00:07]} Bb4 {[%emt 0:00:06]} 8. O-O {[%emt 0:00:21]} Nbd7 {[%emt 0:00:19]} 9. Qe2 {[%emt 0:04:40]} Bg6 {[%emt 0:00:06]} 10. h3 {[%emt 0:00:04]} O-O {[%emt 0:03:48]} 11. Nh4 {[%emt 0:12:33]} Bh5 {[%emt 0:00:16]} 12. g4 {[%emt 0:00:25]} Ne4 {[%emt 0:01:07]} 13. Ng2 {[%emt 0:13:23]} Bg6 {[%emt 0:00:35]} 14. Nxe4 {[%emt 0:00:07]} Bxe4 {[%emt 0:00:05]} 15. f3 {[%emt 0:00:04]} Bd5 {[%emt 0:01:48]} 16. e4 {[%emt 0:07:40]} Bxc4 {[%emt 0:00:24]} 17. Qxc4 {[%emt 0:00:06]} Qa5 {[%emt 0:24:27]} 18. Be3 {[%emt 0:04:18]} e5 {[%emt 0:09:51]} 19. Kh1 {[%emt 0:15:02]} Rfd8 {[%emt 0:07:26]} 20. Rfd1 {[%emt 0:01:08]} exd4 {[%emt 0:04:31]} 21. Bxd4 {[%emt 0:02:41]} c5 {[%emt 0:01:46]} 22. Bg1 {[%emt 0:06:25]} Ne5 {[%emt 0:01:48]} 23. Qf1 {[%emt 0:00:06]} Rxd1 {[%emt 0:02:23]} 24. Rxd1 {[%emt 0:00:06]} Qxa4 {[%emt 0:00:56]} 25. Rd5 {[%emt 0:01:15]} Re8 {[%emt 0:13:28]} 26. Ne3 {[%emt 0:02:36]} Qc6 {[%emt 0:02:03]} 27. Nf5 {[%emt 0:05:09]} h6 {[%emt 0:03:40]} 28. Qd1 {[%emt 0:04:30]} Ng6 {[%emt 0:05:57]} 29. Rd6 {[%emt 0:02:13]} Qb5 {[%emt 0:00:33]} 30. Rd5 {[%emt 0:06:37]} Rf8 {[%emt 0:04:26]} 31. Be3 {[%emt 0:00:56]} Qa6 {[%emt 0:01:24]} 32. h4 {[%emt 0:01:21]} Qf6 {[%emt 0:01:40]} 33. Qc1 {[%emt 0:04:58]} Qa6 {[%emt 0:04:40]} 34. h5 {[%emt 0:00:28]} Qe2 {[%emt 0:00:26]} 35. hxg6 {[%emt 0:04:32]} Qxf3+ {[%emt 0:00:04]} 36. Kh2 {[%emt 0:00:06]} Qe2+ {[%emt 0:03:22]} 37. Kh3 {[%emt 0:01:31]} fxg6 {[%emt 0:00:18]} 38. Ng3 {[%emt 0:00:37]} Rf3 {[%emt 0:00:16]} 39. Bxc5 {[%emt 0:00:29]} Be1 {[%emt 0:00:37]} 40. Bd6 {[%emt 0:00:00]} Qf1+ {[%emt 0:00:00]} 41. Kh4 {[%emt 0:00:35]} Qh1# {[%emt 0:01:16]} 0-1

[Event "69th RUS-ch Women Higher League 2019"]
[Site "Yaroslavl"]
[Date "2019.07.01"]
[Round "5.14"]
[White "Maletina, Tatiana"]
[Black "Diakonova, Ekaterina"]
[Result "1-0"]
[ECO "A45"]
[WhiteElo "2273"]
[BlackElo "2196"]
[Annotator "NA"]
[PlyCount "51"]
[EventDate "2019.06.27"]
[EventType "swiss"]
[EventCountry "RUS"]
[SourceTitle "playchess.com"]
[Source "ChessBase"]
[SourceQuality "1"]
[TimeControl "40/5400+30:1800+30"]

1. d4 {[%emt 0:00:00]} Nf6 {[%emt 0:00:00]} 2. Bg5 {[%emt 0:00:00]} Ne4 {[%emt 0:00:00]} 3. Bf4 {[%emt 0:00:00]} c5 {[%emt 0:00:00]} 4. f3 {[%emt 0:00:00]} Nf6 {[%emt 0:00:00]} 5. d5 {[%emt 0:01:10]} e6 {[%emt 0:01:06]} 6. e4 {[%emt 0:12:05]} exd5 {[%emt 0:00:17]} 7. exd5 {[%emt 0:00:03]} d6 {[%emt 0:00:26]} 8. Nc3 {[%emt 0:00:57]} Be7 {[%emt 0:01:52]} 9. Nge2 {[%emt 0:00:14]} O-O {[%emt 0:05:00]} 10. g4 {[%emt 0:07:54]} a6 {[%emt 0:10:30]} 11. Ng3 {[%emt 0:05:10]} Re8 {[%emt 0:08:15]} 12. Be2 {[%emt 0:08:46]} b5 {[%emt 0:01:44]} 13. g5 {[%emt 0:01:42]} Nfd7 {[%emt 0:00:49]} 14. Nce4 {[%emt 0:00:06]} Ne5 {[%emt 0:04:08]} 15. Bxe5 {[%emt 0:16:32]} dxe5 {[%emt 0:02:14]} 16. Qd2 {[%emt 0:00:10]} Bb7 {[%emt 0:12:57]} 17. c4 {[%emt 0:05:14]} bxc4 {[%emt 0:06:20]} 18. Bxc4 {[%emt 0:18:20]} Nd7 {[%emt 0:00:38]} 19. d6 {[%emt 0:01:13]} Bf8 {[%emt 0:06:23]} 20. g6 {[%emt 0:00:48]} hxg6 {[%emt 0:01:14]} 21. Ng5 {[%emt 0:00:04]} Re6 {[%emt 0:04:17]} 22. Nxe6 {[%emt 0:07:16]} fxe6 {[%emt 0:00:04]} 23. Bxe6+ {[%emt 0:00:04]} Kh7 {[%emt 0:00:15]} 24. O-O {[%emt 0:00:32]} c4 {[%emt 0:05:40]} 25. Qg2 {[%emt 0:02:01]} Qb6+ {[%emt 0:01:31]} 26. Kh1 {[%emt 0:00:27]} 1-0

[Event "69th RUS-ch Women Higher League 2019"]
[Site "Yaroslavl"]
[Date "2019.07.01"]
[Round "5.15"]
[White "Ovod, Evgenija"]
[Black "Mukhina, Jana"]
[Result "0-1"]
[ECO "A45"]
[WhiteElo "2361"]
[BlackElo "2090"]
[Annotator "NA"]
[PlyCount "96"]
[EventDate "2019.06.27"]
[EventType "swiss"]
[EventCountry "RUS"]
[SourceTitle "playchess.com"]
[Source "ChessBase"]
[SourceQuality "1"]
[TimeControl "40/5400+30:1800+30"]

1. d4 {[%emt 0:00:00]} Nf6 {[%emt 0:00:00]} 2. Bg5 {[%emt 0:00:00]} Ne4 {[%emt 0:00:00]} 3. Bf4 {[%emt 0:00:00]} c5 {[%emt 0:00:00]} 4. f3 {[%emt 0:00:00]} Qa5+ {[%emt 0:00:17]} 5. c3 {[%emt 0:00:02]} Nf6 {[%emt 0:00:22]} 6. d5 {[%emt 0:00:09]} e6 {[%emt 0:00:22]} 7. e4 {[%emt 0:00:08]} exd5 {[%emt 0:00:20]} 8. exd5 {[%emt 0:00:06]} d6 {[%emt 0:00:16]} 9. Qd2 {[%emt 0:00:11]} Nbd7 {[%emt 0:00:46]} 10. c4 {[%emt 0:14:33]} Qxd2+ {[%emt 0:00:03]} 11. Kxd2 {[%emt 0:00:05]} b5 {[%emt 0:00:56]} 12. b3 {[%emt 0:03:25]} Nh5 {[%emt 0:11:13]} 13. Be3 {[%emt 0:00:36]} g6 {[%emt 0:03:45]} 14. cxb5 {[%emt 0:28:05]} Nb6 {[%emt 0:05:07]} 15. Nc3 {[%emt 0:00:24]} Nf6 {[%emt 0:04:41]} 16. Re1 {[%emt 0:10:45]} Kd7 {[%emt 0:00:45]} 17. Bc4 {[%emt 0:00:05]} Bb7 {[%emt 0:00:41]} 18. Rd1 {[%emt 0:01:17]} a6 {[%emt 0:20:59]} 19. Kc2 {[%emt 0:07:40]} axb5 {[%emt 0:01:48]} 20. Bxb5+ {[%emt 0:00:23]} Kc7 {[%emt 0:01:16]} 21. Nge2 {[%emt 0:10:21]} Nfxd5 {[%emt 0:01:31]} 22. Bc1 {[%emt 0:00:05]} Bg7 {[%emt 0:04:16]} 23. a3 {[%emt 0:00:19]} Nxc3 {[%emt 0:03:34]} 24. Nxc3 {[%emt 0:00:04]} Bc6 {[%emt 0:10:43]} 25. Bf4 {[%emt 0:04:15]} Rhd8 {[%emt 0:07:53]} 26. Rhe1 {[%emt 0:00:40]} Rd7 {[%emt 0:07:14]} 27. Bxc6 {[%emt 0:06:19]} Kxc6 {[%emt 0:00:37]} 28. Bc1 {[%emt 0:00:07]} d5 {[%emt 0:01:05]} 29. Bb2 {[%emt 0:01:11]} Bxc3 {[%emt 0:04:46]} 30. Kxc3 {[%emt 0:00:12]} d4+ {[%emt 0:00:27]} 31. Kd3 {[%emt 0:04:09]} Nd5 {[%emt 0:00:33]} 32. Rc1 {[%emt 0:00:05]} Nf4+ {[%emt 0:04:12]} 33. Kd2 {[%emt 0:00:21]} Kd5 {[%emt 0:00:56]} 34. Re4 {[%emt 0:05:53]} Ne6 {[%emt 0:00:09]} 35. Rce1 {[%emt 0:00:19]} Rb7 {[%emt 0:01:16]} 36. Kc2 {[%emt 0:00:46]} Rab8 {[%emt 0:01:04]} 37. b4 {[%emt 0:01:33]} cxb4 {[%emt 0:02:05]} 38. Re5+ {[%emt 0:02:15]} Kc4 {[%emt 0:02:28]} 39. Rc1 {[%emt 0:00:13]} d3+ {[%emt 0:00:10]} 40. Kb1+ {[%emt 0:00:00]} Kb3 {[%emt 0:00:00]} 41. Re3 {[%emt 0:01:56]} Rd7 {[%emt 0:03:59]} 42. Re4 {[%emt 0:03:35]} Nc5 {[%emt 0:11:23]} 43. Rxb4+ {[%emt 0:10:35]} Rxb4 {[%emt 0:00:07]} 44. axb4 {[%emt 0:00:04]} Na4 {[%emt 0:01:13]} 45. Bf6 {[%emt 0:00:44]} d2 {[%emt 0:00:45]} 46. Rd1 {[%emt 0:00:10]} Nc3+ {[%emt 0:00:30]} 47. Bxc3 {[%emt 0:00:29]} Kxc3 {[%emt 0:00:02]} 48. h3 {[%emt 0:00:24]} Re7 {[%emt 0:00:12]} 0-1

[Event "69th RUS-ch Women Higher League 2019"]
[Site "Yaroslavl"]
[Date "2019.07.01"]
[Round "5.16"]
[White "Markelova, Lubov"]
[Black "Afonasieva, Anna"]
[Result "1/2-1/2"]
[ECO "D11"]
[WhiteElo "2186"]
[BlackElo "2303"]
[Annotator "NA"]
[PlyCount "178"]
[EventDate "2019.06.27"]
[EventType "swiss"]
[EventCountry "RUS"]
[SourceTitle "playchess.com"]
[Source "ChessBase"]
[SourceQuality "1"]
[TimeControl "40/5400+30:1800+30"]

1. Nf3 {[%emt 0:00:00]} d5 {[%emt 0:00:00]} 2. d4 {[%emt 0:00:00]} Nf6 {[%emt 0:00:00]} 3. c4 {[%emt 0:00:00]} c6 {[%emt 0:00:00]} 4. e3 {[%emt 0:00:00]} e6 {[%emt 0:00:00]} 5. b3 {[%emt 0:00:01]} Nbd7 {[%emt 0:00:00]} 6. Bb2 {[%emt 0:00:40]} Bd6 {[%emt 0:00:09]} 7. Bd3 {[%emt 0:00:43]} O-O {[%emt 0:00:11]} 8. O-O {[%emt 0:00:42]} b6 {[%emt 0:00:17]} 9. Nbd2 {[%emt 0:02:26]} Bb7 {[%emt 0:00:19]} 10. Ne5 {[%emt 0:00:59]} c5 {[%emt 0:00:17]} 11. cxd5 {[%emt 0:03:33]} Bxd5 {[%emt 0:03:12]} 12. Ndc4 {[%emt 0:13:05]} Bc7 {[%emt 0:02:26]} 13. Nxd7 {[%emt 0:04:02]} Nxd7 {[%emt 0:02:32]} 14. Qh5 {[%emt 0:07:15]} f5 {[%emt 0:07:08]} 15. Rad1 {[%emt 0:02:47]} Nf6 {[%emt 0:06:37]} 16. Qh4 {[%emt 0:02:18]} cxd4 {[%emt 0:08:13]} 17. Bxd4 {[%emt 0:02:15]} Qe8 {[%emt 0:04:52]} 18. Ne5 {[%emt 0:06:01]} Rd8 {[%emt 0:01:41]} 19. f3 {[%emt 0:06:53]} Bb7 {[%emt 0:04:21]} 20. Rfe1 {[%emt 0:16:37]} Rd5 {[%emt 0:15:49]} 21. f4 {[%emt 0:05:57]} b5 {[%emt 0:05:04]} 22. Rc1 {[%emt 0:06:00]} Ba5 {[%emt 0:25:19]} 23. Re2 {[%emt 0:02:02]} Qd8 {[%emt 0:03:46]} 24. Rec2 {[%emt 0:04:40]} Bb6 {[%emt 0:01:48]} 25. Bxb6 {[%emt 0:03:24]} Qxb6 {[%emt 0:00:06]} 26. Qg3 {[%emt 0:01:58]} Nh5 {[%emt 0:04:29]} 27. Qf2 {[%emt 0:03:39]} Rfd8 {[%emt 0:00:18]} 28. Bf1 {[%emt 0:00:58]} Nf6 {[%emt 0:01:45]} 29. Nc6 {[%emt 0:02:08]} R8d7 {[%emt 0:00:21]} 30. Ne5 {[%emt 0:02:05]} R7d6 {[%emt 0:00:26]} 31. Qe1 {[%emt 0:01:42]} Nd7 {[%emt 0:02:18]} 32. Nf3 {[%emt 0:00:33]} e5 {[%emt 0:01:25]} 33. Kh1 {[%emt 0:00:26]} h6 {[%emt 0:00:25]} 34. a4 {[%emt 0:00:36]} a6 {[%emt 0:00:25]} 35. axb5 {[%emt 0:00:26]} axb5 {[%emt 0:00:05]} 36. b4 {[%emt 0:00:36]} exf4 {[%emt 0:00:38]} 37. exf4 {[%emt 0:00:07]} Nf6 {[%emt 0:00:09]} 38. Qe7 {[%emt 0:00:53]} Rd7 {[%emt 0:01:30]} 39. Qe1 {[%emt 0:00:23]} Ne4 {[%emt 0:00:22]} 40. h3 {[%emt 0:00:00]} R7d6 {[%emt 0:00:00]} 41. Kh2 {[%emt 0:05:40]} Rg6 {[%emt 0:04:26]} 42. Ne5 {[%emt 0:05:14]} Rg3 {[%emt 0:08:10]} 43. Qe2 {[%emt 0:01:52]} Qd6 {[%emt 0:02:47]} 44. Rc8+ {[%emt 0:15:22]} Bxc8 {[%emt 0:00:55]} 45. Rxc8+ {[%emt 0:00:03]} Kh7 {[%emt 0:00:07]} 46. Rh8+ {[%emt 0:00:46]} Kxh8 {[%emt 0:00:05]} 47. Nf7+ {[%emt 0:00:02]} Kh7 {[%emt 0:03:05]} 48. Nxd6 {[%emt 0:00:04]} Rxd6 {[%emt 0:00:06]} 49. Qxb5 {[%emt 0:00:15]} Rf6 {[%emt 0:01:44]} 50. Qd5 {[%emt 0:01:46]} Rc3 {[%emt 0:05:10]} 51. Bc4 {[%emt 0:03:42]} Nd6 {[%emt 0:00:17]} 52. Qg8+ {[%emt 0:01:03]} Kg6 {[%emt 0:00:05]} 53. Be2 {[%emt 0:00:53]} Rc8 {[%emt 0:00:41]} 54. Qd5 {[%emt 0:00:47]} Re8 {[%emt 0:01:34]} 55. Bd3 {[%emt 0:00:30]} Ne4 {[%emt 0:00:56]} 56. g4 {[%emt 0:00:38]} Nd6 {[%emt 0:02:49]} 57. b5 {[%emt 0:00:12]} Kh7 {[%emt 0:03:13]} 58. b6 {[%emt 0:00:28]} Kh8 {[%emt 0:01:58]} 59. g5 {[%emt 0:00:45]} hxg5 {[%emt 0:00:44]} 60. fxg5 {[%emt 0:00:03]} Rg6 {[%emt 0:01:01]} 61. b7 {[%emt 0:00:30]} Nxb7 {[%emt 0:01:00]} 62. Qxb7 {[%emt 0:00:28]} Rxg5 {[%emt 0:00:16]} 63. Qb4 {[%emt 0:00:59]} Rh5 {[%emt 0:00:56]} 64. Qf4 {[%emt 0:00:32]} Rf8 {[%emt 0:00:28]} 65. Be2 {[%emt 0:00:32]} Rh6 {[%emt 0:00:10]} 66. Qg5 {[%emt 0:00:22]} Re8 {[%emt 0:01:00]} 67. Bh5 {[%emt 0:00:32]} Rf8 {[%emt 0:00:24]} 68. Bg6 {[%emt 0:00:32]} f4 {[%emt 0:00:17]} 69. Qe7 {[%emt 0:00:36]} Rb8 {[%emt 0:00:48]} 70. Qe4 {[%emt 0:00:30]} Rf8 {[%emt 0:00:17]} 71. Qe7 {[%emt 0:00:26]} Rb8 {[%emt 0:00:11]} 72. Qd6 {[%emt 0:00:32]} Rc8 {[%emt 0:00:49]} 73. Qe6 {[%emt 0:00:33]} Rf8 {[%emt 0:00:16]} 74. Kg2 {[%emt 0:00:19]} f3+ {[%emt 0:00:35]} 75. Kf2 {[%emt 0:00:17]} Rxg6 {[%emt 0:00:28]} 76. Qxg6 {[%emt 0:00:08]} Rf6 {[%emt 0:00:09]} 77. Qh5+ {[%emt 0:00:57]} Kg8 {[%emt 0:00:04]} 78. h4 {[%emt 0:00:26]} Rf8 {[%emt 0:00:44]} 79. Qg5 {[%emt 0:00:26]} Rf6 {[%emt 0:00:14]} 80. Qd5+ {[%emt 0:00:43]} Kh7 {[%emt 0:00:22]} 81. Qh5+ {[%emt 0:00:09]} Kg8 {[%emt 0:00:04]} 82. Qe8+ {[%emt 0:00:07]} Rf8 {[%emt 0:00:32]} 83. Qe6+ {[%emt 0:00:06]} Kh7 {[%emt 0:00:06]} 84. h5 {[%emt 0:00:35]} Rf6 {[%emt 0:01:36]} 85. Qe8 {[%emt 0:00:19]} Rh6 {[%emt 0:00:27]} 86. Kxf3 {[%emt 0:00:29]} Rf6+ {[%emt 0:00:06]} 87. Kg4 {[%emt 0:00:57]} Rh6 {[%emt 0:00:12]} 88. Kg5 {[%emt 0:00:28]} Rf6 {[%emt 0:00:12]} 89. Qe4+ {[%emt 0:00:37]} Kh8 {[%emt 0:00:11]} 1/2-1/2